Workbook

Sheet Cover Page
B1: Department of Managed Health Care/Department of Insurance
B2: Medical Loss Ratio Reporting Form
B3: Dental Coverage
A6: 1. | B6: MLR Reporting Year | C6: 2019
A7: 2. | B7: Enter DMHC Health Plan ID. Insurers may leave this field blank
A8: 3. | B8: Legal Name | C8: Nationwide Life Insurance Company
A9: 4. | B9: DBA
A10: 5. | B10: Federal Tax Exempt Status? Please enter Yes or No | C10: No
B14: Cell Key:
B15: Blank cells require input from Health plan or Health insurer
B18: Version 4.22.15
B19: Revised Version 5.26.15
B20: Revised Version 4.15.16 corrected dates for Cycle Year (CY)2015-2016 on TABs Parts 1, 2 and 4.
B21: Revised Version 5.10.17 12/31 and 3/31 Columns years to be auto populated on TABs Parts 1 and 2.
B22: Revised Version 5.20.19 Document Accessible

Sheet Pt 1 Summary of Data
B1: Department of Managed Health Care/Department of Insurance
B2: Medical Loss Ratio Reporting Form: Dental Coverage
B3: Part 1 - Summary of Data
B5: Health Plan ID | H5: Federal Tax Exempt
D6: ='Cover Page'!C7 -> 0 | H6: ='Cover Page'!C10 -> No
B7: Legal Name
D8: ='Cover Page'!C8 -> Nationwide Life Insurance Company
B9: dBA | E9: Part 1
D10: ='Cover Page'!C9 -> 0
B11: MLR Reporting Year
D12: ='Cover Page'!C6 -> 2019
G14: Health Insurance Coverage | M14: Health Insurance Coverage
G15: DHMO Products | M15: DPPO & Indemnity Products
E16: Individual | G16: Small Group | I16: Large Group | K16: Individual | M16: Small Group | O16: Large Group
E17: Total as of | F17: Total as of | G17: Total as of | H17: Total as of | I17: Total as of | J17: Total as of | K17: Total as of | L17: Total as of | M17: Total as of | N17: Total as of | O17: Total as of | P17: Total as of
D18: Part 1 NOTE: REFER TO MLR INSTRUCTIONS FOR IMPORTANT | E18: ="12/31/"&""&'Cover Page'!C$6 -> 12/31/2019 | F18: =DATE(YEAR(E18)+0,MONTH(E18)+3,DAY(E18)+0) -> 2020-03-31 | G18: ="12/31/"&""&'Cover Page'!C$6 -> 12/31/2019 | H18: =DATE(YEAR(G18)+0,MONTH(G18)+3,DAY(G18)+0) -> 2020-03-31 | I18: ="12/31/"&""&'Cover Page'!C$6 -> 12/31/2019 | J18: =DATE(YEAR(I18)+0,MONTH(I18)+3,DAY(I18)+0) -> 2020-03-31 | K18: ="12/31/"&""&'Cover Page'!C$6 -> 12/31/2019 | L18: =DATE(YEAR(K18)+0,MONTH(K18)+3,DAY(K18)+0) -> 2020-03-31 | M18: ="12/31/"&""&'Cover Page'!C$6 -> 12/31/2019 | N18: =DATE(YEAR(M18)+0,MONTH(M18)+3,DAY(M18)+0) -> 2020-03-31 | O18: ="12/31/"&""&'Cover Page'!C$6 -> 12/31/2019 | P18: =DATE(YEAR(O18)+0,MONTH(O18)+3,DAY(O18)+0) -> 2020-03-31
D19: INFORMATION ABOUT COMPLETING EACH COLUMN AND ROW. | E19: 1 | F19: 2 | G19: 3 | H19: 4 | I19: 5 | J19: 6 | K19: 7 | L19: 8 | M19: 9 | N19: 10 | O19: 11 | P19: 12
B20: 1. | C20: Premium
C21: 1.1 | D21: Total direct premium earned | E21: ='Pt 2 Premium and Claims'!E22+'Pt 2 Premium and Claims'!E23-'Pt 2 Premium and Claims'!E24-'Pt 2 Premium and Claims'!E25 -> 0 | F21: ='Pt 2 Premium and Claims'!F22+'Pt 2 Premium and Claims'!F23-'Pt 2 Premium and Claims'!F24-'Pt 2 Premium and Claims'!F25 -> 0 | G21: ='Pt 2 Premium and Claims'!G22+'Pt 2 Premium and Claims'!G23-'Pt 2 Premium and Claims'!G24-'Pt 2 Premium and Claims'!G25 -> 0 | H21: ='Pt 2 Premium and Claims'!H22+'Pt 2 Premium and Claims'!H23-'Pt 2 Premium and Claims'!H24-'Pt 2 Premium and Claims'!H25 -> 0 | I21: ='Pt 2 Premium and Claims'!I22+'Pt 2 Premium and Claims'!I23-'Pt 2 Premium and Claims'!I24-'Pt 2 Premium and Claims'!I25 -> 0 | J21: ='Pt 2 Premium and Claims'!J22+'Pt 2 Premium and Claims'!J23-'Pt 2 Premium and Claims'!J24-'Pt 2 Premium and Claims'!J25 -> 0 | K21: ='Pt 2 Premium and Claims'!K22+'Pt 2 Premium and Claims'!K23-'Pt 2 Premium and Claims'!K24-'Pt 2 Premium and Claims'!K25 -> 0 | L21: ='Pt 2 Premium and Claims'!L22+'Pt 2 Premium and Claims'!L23-'Pt 2 Premium and Claims'!L24-'Pt 2 Premium and Claims'!L25 -> 0 | M21: ='Pt 2 Premium and Claims'!M22+'Pt 2 Premium and Claims'!M23-'Pt 2 Premium and Claims'!M24-'Pt 2 Premium and Claims'!M25 -> 0 | N21: ='Pt 2 Premium and Claims'!N22+'Pt 2 Premium and Claims'!N23-'Pt 2 Premium and Claims'!N24-'Pt 2 Premium and Claims'!N25 -> 0 | O21: ='Pt 2 Premium and Claims'!O22+'Pt 2 Premium and Claims'!O23-'Pt 2 Premium and Claims'!O24-'Pt 2 Premium and Claims'!O25 -> 1290797.72 | P21: ='Pt 2 Premium and Claims'!P22+'Pt 2 Premium and Claims'!P23-'Pt 2 Premium and Claims'!P24-'Pt 2 Premium and Claims'!P25 -> 1290797.72
B23: 2. | C23: Claims
C24: 2.1 | D24: Total incurred claims (MLR Form Part 2, Line 2.11) | E24: ='Pt 2 Premium and Claims'!E51 -> 0 | F24: ='Pt 2 Premium and Claims'!F51 -> 0 | G24: ='Pt 2 Premium and Claims'!G51 -> 0 | H24: ='Pt 2 Premium and Claims'!H51 -> 0 | I24: ='Pt 2 Premium and Claims'!I51 -> 0 | J24: ='Pt 2 Premium and Claims'!J51 -> 0 | K24: ='Pt 2 Premium and Claims'!K51 -> 0 | L24: ='Pt 2 Premium and Claims'!L51 -> 0 | M24: ='Pt 2 Premium and Claims'!M51 -> 0 | N24: ='Pt 2 Premium and Claims'!N51 -> 0 | O24: ='Pt 2 Premium and Claims'!O51 -> 796216.15 | P24: ='Pt 2 Premium and Claims'!P51 -> 764750.04
B26: 3. | C26: Federal and State Taxes and Licensing or Regulatory Fees
C27: 3.1 | D27: Federal taxes and assessments incurred by the reporting health plan or health insurer during the MLR reporting year
D28: 3.1 a Federal income taxes deductible from premium in MLR calculations | O28: ='Taxes & assessments retrieve'!F57*0.21 -> 65582.7018 | P28: 65583
D29: 3.1 b Other Federal Taxes (other than income tax) and assessments deductible from premium
C30: 3.2 | D30: State insurance, premium and other taxes incurred by the reporting health plan or heath insurer during the MLR reporting year (deductible from premium in MLR calculation)
D31: 3.2 a State income, excise, business, and other taxes
D32: 3.2 b State premium taxes | O32: ='Taxes & assessments retrieve'!F13 -> 31210.23 | P32: 31210
D33: 3.2 c Community benefit expenditures
C34: 3.3 | D34: Regulatory authority licenses and fees
C35: 3.4 | D35: Total Federal and State Taxes and fees to be excluded from premium | E35: =SUM(E$28:E$29,E$31,E$34+IF($H$6="No",IF(MAX(E$32:E$33)=0,MIN(E$32:E$33),MAX(E$32:E$33)),SUM(E$32:E$33))) -> 0 | F35: 0 | G35: 0 | H35: 0 | I35: 0 | J35: 0 | K35: 0 | L35: 0 | M35: 0 | N35: 0 | O35: 96792.9318 | P35: 96793
B37: 4. | C37: Non-Claims Costs
C38: 4.1 | D38: Direct sales salaries and benefits | O38: =ROUND(SUM('Salary, OGA, etc'!G12:G28)*'State allocation'!C57,2) -> 27699.02 | P38: 27699
C39: 4.2 | D39: Agents and brokers fees and commissions | O39: =ROUND(SUM('Salary, OGA, etc'!G31:G32)*'State allocation'!C57,2) -> 225129.53 | P39: 225130
C40: 4.3 | D40: Other taxes
D41: 4.3a Taxes and assessments (exclude amounts reported in Section 3 or Line 10)
D42: 4.3b Fines and penalties of regulatory authorities (exclude amounts reported in Line 3.3)
C43: 4.4 | D43: Other general and administrative expenses | O43: =ROUND(SUM('Salary, OGA, etc'!G35:G118)*'State allocation'!C57,2) -> 65917.77 | P43: 65918
C44: 4.5 | D44: Total non-claims costs | E44: =SUM(SUM(E38:E39)+SUM(E41:E43)) -> 0 | F44: =SUM(SUM(F38:F39)+SUM(F41:F43)) -> 0 | G44: 0 | H44: 0 | I44: 0 | J44: 0 | K44: 0 | L44: 0 | M44: 0 | N44: 0 | O44: 318746.32 | P44: 318747
B46: 5. | C46: Other Indicators or information
C47: 5.1 | D47: Number of covered lives | O47: 5392 | P47: 5392
C48: 5.2 | D48: Member months | O48: 30910 | P48: 30910
C49: 5.3 | D49: Number of life-years | E49: =E48/12 -> 0 | F49: =F48/12 -> 0 | G49: 0 | H49: =H48/12 -> 0 | I49: 0 | J49: 0 | K49: 0 | L49: 0 | M49: =M48/12 -> 0 | N49: =N48/12 -> 0 | O49: 2575.833333 | P49: 2575.833333
E50: ="Grand Total as of "&""&TEXT(E$18,"MM/DD/YYYY")&" for ALL markets in col. 1-12." -> Grand Total as of 12/31/2019 for ALL markets in col. 1-12.
B51: 6. | C51: Net investment income and other gain / (loss)
B52: 7. | C52: Other Federal income taxes (exclude taxes on Line 3.1a and 3.1b)
B54: Cell Keys:
C55: Blank cells require input from Health plan or Health insurer
C56: Grey cells require no data input
C57: Pink cells require no data input - locked down
C58: Blue cells: computed cell (formula cell)

Sheet Pt 2 Premium and Claims
B1: Department of Managed Health Care/Department of Insurance
B2: Medical Loss Ratio Reporting Form: Dental Coverage
B3: Part 2 - Premium and Claims
B5: Health Plan ID
D6: ='Cover Page'!C7 -> 0
B7: Legal Name
D8: ='Cover Page'!C8 -> Nationwide Life Insurance Company
B9: dBA | E9: Part 2
D10: ='Cover Page'!C9 -> 0
B11: MLR Reporting Year
D12: ='Cover Page'!C6 -> 2019
G15: Health Insurance Coverage | M15: Health Insurance Coverage
G16: DHMO Products | M16: DPPO & Indemnity Products
E17: Individual | H17: Small Group | I17: Large Group | K17: Individual | M17: Small Group | O17: Large Group
E18: Total as of | F18: Total as of | G18: Total as of | H18: Total as of | I18: Total as of | J18: Total as of | K18: Total as of | L18: Total as of | M18: Total as of | N18: Total as of | O18: Total as of | P18: Total as of
D19: Part 2 NOTE: REFER TO MLR INSTRUCTIONS FOR IMPORTANT | E19: ="12/31/"&""&'Cover Page'!C$6 -> 12/31/2019 | F19: =DATE(YEAR(E19)+0,MONTH(E19)+3,DAY(E19)+0) -> 2020-03-31 | G19: ="12/31/"&""&'Cover Page'!C$6 -> 12/31/2019 | H19: =DATE(YEAR(G19)+0,MONTH(G19)+3,DAY(G19)+0) -> 2020-03-31 | I19: ="12/31/"&""&'Cover Page'!C$6 -> 12/31/2019 | J19: =DATE(YEAR(I19)+0,MONTH(I19)+3,DAY(I19)+0) -> 2020-03-31 | K19: ="12/31/"&""&'Cover Page'!C$6 -> 12/31/2019 | L19: =DATE(YEAR(K19)+0,MONTH(K19)+3,DAY(K19)+0) -> 2020-03-31 | M19: ="12/31/"&""&'Cover Page'!C$6 -> 12/31/2019 | N19: =DATE(YEAR(M19)+0,MONTH(M19)+3,DAY(M19)+0) -> 2020-03-31 | O19: ="12/31/"&""&'Cover Page'!C$6 -> 12/31/2019 | P19: =DATE(YEAR(O19)+0,MONTH(O19)+3,DAY(O19)+0) -> 2020-03-31
D20: INFORMATION ABOUT COMPLETING EACH COLUMN AND ROW. | E20: 1 | F20: 2 | G20: 3 | H20: 4 | I20: 5 | J20: 6 | K20: 7 | L20: 8 | M20: 9 | N20: 10 | O20: 11 | P20: 12
B21: 1. | C21: Premium:
C22: 1.1 | D22: Direct premium written | O22: =SUM('[1]Part 2 Line 1.1 (12-31 Column)'!$M$16:$M$129) -> 1287590.92 | P22: =SUM('[1]Part 2 Line 1.1 (12-31 Column)'!$M$16:$M$129) -> 1287590.92
C23: 1.2 | D23: Unearned premium prior year | O23: =SUM('[1]Part 2 Line 1.2 (12-31 Column)'!$M$16:$M$27) -> 3206.8 | P23: =SUM('[1]Part 2 Line 1.2 (12-31 Column)'!$M$16:$M$27) -> 3206.8
C24: 1.3 | D24: Unearned premium MLR Reporting year | O24: 0
C25: 1.4 | D25: Premium balances written off
B27: 2. | C27: Claims:
C28: 2.1 | D28: Claims Paid
D29: 2.1a Claims paid during the MLR reporting year regardless of incurred date | O29: ='Claims retrieve'!F13 -> 766348.07
D30: 2.1b Claims incurred only during the MLR reporting year, paid through 3/31 of the following year | P30: ='Claims retrieve'!F31+'Claims retrieve'!F32 -> 633976.39
C31: 2.2 | D31: Direct claim liability
D32: 2.2a Liability as of 12/31 of MLR reporting year for all claims regardless of incurred date | O32: ='Claims retrieve'!F43+'Claims retrieve'!F47 -> 157413.87
D33: 2.2b Liability for claims incurred only during the MLR reporting year, calculated as of 3/31 of the following year | P33: ='Claims retrieve'!F44+'Claims retrieve'!F48 -> 130773.65
C34: 2.3 | D34: Direct claim liability prior year | O34: ='Claims retrieve'!F42+'Claims retrieve'!F46 -> 127545.79
C35: 2.4 | D35: Direct claim reserves
D36: 2.4a Reserves as of 12/31 of MLR reporting year for all claims regardless of incurred date
D37: 2.4b Reserves for claims incurred only during the MLR reporting year, calculated as of 3/31 of the following year
C38: 2.5 | D38: Direct claim reserves prior year
C39: 2.6 | D39: Experience rating refunds (rate credits) paid
D40: 2.6a Experience rating refunds, with all incurred dates, paid in the MLR reporting year
D41: 2.6b Experience rating refunds associated with premium earned only in the reporting year and paid through 3/31 of the following year
C42: 2.7 | D42: Reserve for experience rating refunds (rate credits)
D43: 2.7a Reserved in MLR reporting year regardless of incurred date
D44: 2.7b Reserves specific to the MLR reporting year through 3/31 of the following year
C45: 2.8 | D45: Reserve for experience rating refunds (rate credits) prior year
C46: 2.9 | D46: Incurred dental incentive pool and bonuses
D47: 2.9a Paid dental incentive pools and bonuses MLR Reporting year
D48: 2.9b Accrued dental incentive pools and bonuses MLR Reporting year
D49: 2.9c Accrued dental incentive pools and bonuses prior year
C50: 2.10 | D50: Contingent benefit and lawsuit reserves
C51: 2.11 | D51: Total incurred claims | E51: =E29+E32-E34+E36-E38+E40+E43-E45+E47+E48-E49+E50 -> 0 | F51: =F30+F33+F37+F41+F44+F47+F48+F50 -> 0 | G51: =G29+G32-G34+G36-G38+G40+G43-G45+G47+G48-G49+G50 -> 0 | H51: =H30+H33+H37+H41+H44+H47+H48+H50 -> 0 | I51: =I29+I32-I34+I36-I38+I40+I43-I45+I47+I48-I49+I50 -> 0 | J51: =J30+J33+J37+J41+J44+J47+J48+J50 -> 0 | K51: =K29+K32-K34+K36-K38+K40+K43-K45+K47+K48-K49+K50 -> 0 | L51: =L30+L33+L37+L41+L44+L47+L48+L50 -> 0 | M51: =M29+M32-M34+M36-M38+M40+M43-M45+M47+M48-M49+M50 -> 0 | N51: =N30+N33+N37+N41+N44+N47+N48+N50 -> 0 | O51: =O29+O32-O34+O36-O38+O40+O43-O45+O47+O48-O49+O50 -> 796216.15 | P51: =P30+P33+P37+P41+P44+P47+P48+P50 -> 764750.04
C54: Cell Keys:
D55: Blank cells require input from Health plan or Health insurer
D56: Grey cells require no data input
D57: Pink cells require no data input - locked down
D58: Blue cells: computed cell (formula cell)

Sheet Pt 3 Expense Allocation
B1: Department of Managed Health Care/Department of Insurance
B2: Medical Loss Ratio Reporting Form: Dental Coverage
B3: Part 3 - Expense Allocation
B5: Health Plan ID
B6: ='Cover Page'!C7 -> 0 | D6: Part 3
B7: Legal Name
B8: ='Cover Page'!C8 -> Nationwide Life Insurance Company
B9: dBA
B10: ='Cover Page'!C9 -> 0
B11: MLR Reporting Year
B12: ='Cover Page'!C6 -> 2019
B15: Description of Expense Element (by Type) | C15: NEW | D15: Detailed Description of Expense Allocation Methods
B16: 1 | C16: 2 | D16: 3
B17: 1. Incurred Claims
B18: Expense that is paid to provider for benefits outlined in the policy | D18: Not allocated, we book the expense to the State claim orginated. All claims are reported as dental claims and not allocated to any lower coverage levels.
B24: 2. Federal and State Taxes and Licensing or Regulatory Fees
B25: 2.a Federal taxes and assessments
B26: Federal tax and Assessments | D26: Allocated to State/product level by premium contribution
B32: 2.b State insurance, premium and other taxes
B33: State insurance | D33: Allocated to State/product level by premium contribution
B34: State premium tax | D34: Not allocated, we pay and book to each state as the STAT product filing requires
B35: Other taxes | D35: book other taxes licensing and fees to the State it orginated and allocate to product by premium if needed.
B39: 2.c Community benefit expenditures
B40: Community benefit expenditures | D40: Muni taxes are assesed, paid, and booked to State/product. Not allocated
B46: 2.d Regulatory authority licenses and fees
B47: Licenses and fees | D47: If a license is not State specific the expense is allocated to State/product by premium. If State/product specific no allocation is needed.
B53: 3. Non-Claims costs
B54: 3.a Direct sales salaries and benefits
B55: Direct sales salaries and benefits | D55: Direct states salaries and benefits are allocated to product then to state by premium contribution
B61: 3.b Agents and brokers fees and commissions
B62: Agents and brokers fees and commissions | D62: This charge is a % of premium that is applied to the State/product premium. No allocation needed.
B68: 3.c Other taxes
B69: Other taxes | D69: If State tax, allocated to product by premium.
B75: 3.d Other general and administrative expenses
B76: Other general and administrative expenses | D76: General salaries and benefits are allocated to product then to state by premium contribution
B83: Cell Keys:
B84: Blank cells require input from Health plan or Health insurer
B85: Grey cells require no data input
B86: Pink cells require no data input - locked down
B87: Blue cells: computed cell (formula cell)

Sheet Pt 4 MLR Calculation
B1: Department of Managed Health Care/Department of Insurance
B2: Medical Loss Ratio Reporting Form: Dental Coverage
B3: Part 4 - MLR Calculation
B5: Health Plan ID
D6: ='Cover Page'!C7 -> 0 | F6: Part 4
B7: Legal Name
D8: ='Cover Page'!C8 -> Nationwide Life Insurance Company
B9: dBA
D10: ='Cover Page'!C9 -> 0
B11: MLR Reporting Year
D12: ='Cover Page'!C6 -> 2019
J15: Health Insurance Coverage | V15: Health Insurance Coverage
J16: DHMO Products | V16: DPPO & Indemnity Products
F17: Individual | J17: Small Group | N17: Large Group | R17: Individual | V17: Small Group | Z17: Large Group
D18: Part 4 NOTE: REFER TO MLR INSTRUCTIONS FOR IMPORTANT | E18: PY2 | F18: PY1 | G18: CY | H18: Total | I18: PY2 | J18: PY1 | K18: CY | L18: Total | M18: PY2 | N18: PY1 | O18: CY | P18: Total | Q18: PY2 | R18: PY1 | S18: CY | T18: Total | U18: PY2 | V18: PY1 | W18: CY | X18: Total | Y18: PY2 | Z18: PY1 | AA18: CY | AB18: Total
D19: INFORMATION ABOUT COMPLETING EACH COLUMN AND ROW. | E19: 1 | F19: 2 | G19: 3 | H19: 4 | I19: 5 | J19: 6 | K19: 7 | L19: 8 | M19: 9 | N19: 10 | O19: 11 | P19: 12 | Q19: 13 | R19: 14 | S19: 15 | T19: 16 | U19: 17 | V19: 18 | W19: 19 | X19: 20 | Y19: 21 | Z19: 22 | AA19: 23 | AB19: 24
B20: 1. | C20: Medical Loss Ratio Numerator
C21: 1.1 | D21: Adjusted incurred claims as reported on MLR Form for prior year(s)
C22: 1.2 | D22: Adjusted incurred claims as of 3/31 of the year following the MLR reporting year (Part 1 Line 2.1) | G22: ='Pt 1 Summary of Data'!F24 -> 0 | H22: =SUM(E22:G22) -> 0 | K22: ='Pt 1 Summary of Data'!H24 -> 0 | L22: =SUM(I22:K22) -> 0 | O22: ='Pt 1 Summary of Data'!J24 -> 0 | P22: =SUM(M22:O22) -> 0 | S22: ='Pt 1 Summary of Data'!L24 -> 0 | T22: =SUM(Q22:S22) -> 0 | W22: ='Pt 1 Summary of Data'!N24 -> 0 | X22: =SUM(U22:W22) -> 0 | Y22: 910440.44 | Z22: 848375.38 | AA22: ='Pt 1 Summary of Data'!P24 -> 764750.04 | AB22: =SUM(Y22:AA22) -> 2523565.86
C23: 1.3 | D23: MLR numerator (Line 1.2) | E23: =SUM(E$22) -> 0 | F23: =SUM(F$22) -> 0 | G23: =SUM(G$22:G$22) -> 0 | H23: =SUM(E23:G23) -> 0 | I23: =SUM(I$22:I$22) -> 0 | J23: =SUM(J$22:J$22) -> 0 | K23: =SUM(K$22:K$22) -> 0 | L23: =SUM(I23:K23) -> 0 | M23: =SUM(M$22:M$22) -> 0 | N23: =SUM(N$22:N$22) -> 0 | O23: =SUM(O$22:O$22) -> 0 | P23: =SUM(M23:O23) -> 0 | Q23: =SUM(Q$22:Q$22) -> 0 | R23: =SUM(R$22:R$22) -> 0 | S23: =SUM(S$22:S$22) -> 0 | T23: =SUM(Q23:S23) -> 0 | U23: =SUM(U$22:U$22) -> 0 | V23: =SUM(V$22:V$22) -> 0 | W23: =SUM(W$22:W$22) -> 0 | X23: =SUM(U23:W23) -> 0 | Y23: =SUM(Y$22:Y$22) -> 910440.44 | Z23: =SUM(Z$22:Z$22) -> 848375.38 | AA23: =SUM(AA$22:AA$22) -> 764750.04 | AB23: =SUM(Y23:AA23) -> 2523565.86
B25: 2. | C25: Medical Loss Ratio Denominator
C26: 2.1 | D26: Premium earned (Part 1 Line 1.1) | G26: ='Pt 1 Summary of Data'!F21 -> 0 | H26: =SUM(E26:G26) -> 0 | K26: ='Pt 1 Summary of Data'!H21 -> 0 | L26: =SUM(I26:K26) -> 0 | O26: ='Pt 1 Summary of Data'!J21 -> 0 | P26: =SUM(M26:O26) -> 0 | S26: ='Pt 1 Summary of Data'!L21 -> 0 | T26: =SUM(Q26:S26) -> 0 | W26: ='Pt 1 Summary of Data'!N21 -> 0 | X26: =SUM(U26:W26) -> 0 | Y26: 1589017.86 | Z26: 1481679.11 | AA26: ='Pt 1 Summary of Data'!P21 -> 1290797.72 | AB26: =SUM(Y26:AA26) -> 4361494.69
C27: 2.2 | D27: Federal and State taxes and licensing or regulatory fees ( Part 1 Line 3.4) | G27: ='Pt 1 Summary of Data'!F35 -> 0 | H27: =SUM(E27:G27) -> 0 | K27: ='Pt 1 Summary of Data'!H35 -> 0 | L27: =SUM(I27:K27) -> 0 | O27: ='Pt 1 Summary of Data'!J35 -> 0 | P27: =SUM(M27:O27) -> 0 | S27: ='Pt 1 Summary of Data'!L35 -> 0 | T27: =SUM(Q27:S27) -> 0 | W27: ='Pt 1 Summary of Data'!N35 -> 0 | X27: =SUM(U27:W27) -> 0 | Y27: 36273.5 | Z27: 114594.1582 | AA27: ='Pt 1 Summary of Data'!P35 -> 96793 | AB27: =SUM(Y27:AA27) -> 247660.6582
C28: 2.3 | D28: MLR Denominator (Line 2.1 - Line 2.2) | E28: =E$26-E$27 -> 0 | F28: 0 | G28: 0 | H28: =H$26-H$27 -> 0 | I28: =I$26-I$27 -> 0 | J28: =J$26-J$27 -> 0 | K28: 0 | L28: =L$26-L$27 -> 0 | M28: 0 | N28: 0 | O28: 0 | P28: =P$26-P$27 -> 0 | Q28: 0 | R28: 0 | S28: 0 | T28: =T$26-T$27 -> 0 | U28: 0 | V28: 0 | W28: 0 | X28: =X$26-X$27 -> 0 | Y28: 1552744.36 | Z28: 1367084.952 | AA28: 1194004.72 | AB28: =AB$26-AB$27 -> 4113834.032
B30: 3. | C30: 3.1 | D30: Life-years (Part 1 Line 5.3) | G30: ='Pt 1 Summary of Data'!F49 -> 0 | H30: =SUM(E30:G30) -> 0 | K30: ='Pt 1 Summary of Data'!H49 -> 0 | L30: =SUM(I30:K30) -> 0 | O30: ='Pt 1 Summary of Data'!J49 -> 0 | P30: =SUM(M30:O30) -> 0 | S30: ='Pt 1 Summary of Data'!L49 -> 0 | T30: =SUM(Q30:S30) -> 0 | W30: ='Pt 1 Summary of Data'!N49 -> 0 | X30: =SUM(U30:W30) -> 0 | Y30: 2759.5 | Z30: 2469 | AA30: ='Pt 1 Summary of Data'!P49 -> 2575.833333 | AB30: =SUM(Y30:AA30) -> 7804.333333
B32: 4. | D32: MLR Calculation (for Health plans or health insurers with at least 1,000 life years in the Total column of Line 3.1)
C33: 4.1 | D33: MLR | H33: =IF(H30<1000,"Not Required to Calculate",H23/H28) -> Not Required to Calculate | L33: =IF(L30<1000,"Not Required to Calculate",L23/L28) -> Not Required to Calculate | P33: =IF(P30<1000,"Not Required to Calculate",P23/P28) -> Not Required to Calculate | T33: =IF(T30<1000,"Not Required to Calculate",T23/T28) -> Not Required to Calculate | X33: =IF(X30<1000,"Not Required to Calculate",X23/X28) -> Not Required to Calculate | AB33: =IF(AB30<1000,"Not Required to Calculate",AB23/AB28) -> 0.6134340473
C37: Cell Keys:
D38: Blank cells require input from Health plan or Health insurer
D39: Grey cells require no data input
D40: Pink cells require no data input - locked down
D41: Blue cells: computed cell (formula cell)

Sheet Pt 5 Additional Responses
B1: Department of Managed Health Care/Department of Insurance
B2: Medical Loss Ratio Reporting Form: Dental Coverage
B3: Part 5 - Additional Responses
B5: Health Plan ID
B6: ='Cover Page'!C7 -> 0
B7: Legal Name | C7: Part 5
B8: ='Cover Page'!C8 -> Nationwide Life Insurance Company
B9: dBA
B10: ='Cover Page'!C9 -> 0
B11: MLR Reporting Year
B12: ='Cover Page'!C6 -> 2019
C16: Tax Rate
B17: 1. If a health plan or health insurer uses the hightest premium tax rate in the State, the health plan or health insurer must report applicabe highest State health premium tax rate.
B18: 2. If the health plan or health insurer included deferred experience for prior year and excluded deferred experience for current year, provide the total direct written premium and total incurred claims for the deferred experience by market.
B19: Deferred experience for prior year
B20: Deferred experience for current year
B32: 3. If the health plan or health insurer novated any business in the MLR reporting year effective during the reporting year provide the name of the entity to whom the business was sold or transferred and the date of the sale or transfer.
B33: Name of Entity to whom business was sold or transferred | C33: Effective date of sale or transfer
B45: Cell Keys:
B46: Blank cells require input from Health plan or Health insurer
B47: Grey cells require no data input
B48: Pink cells require no data input - locked down
B49: Blue cells: computed cell (formula cell)

Sheet Attestation
B1: Department of Managed Health Care
B2: Medical Loss Ratio Reporting Form: Dental Coverage
B3: Attestation
B5: Health Plan ID
B6: ='Cover Page'!C7 -> 0
B7: Legal Name
B8: ='Cover Page'!C8 -> Nationwide Life Insurance Company | D8: Attestation
B9: dBA
B10: ='Cover Page'!C9 -> 0
B11: MLR Reporting Year
B12: ='Cover Page'!C6 -> 2019
B17: Attestation Statement
B18: The officers of this reporting Health plan being duly sworn, each attest that he/she is the described officer of the reporting Health plan, and that this MLR Reporting Form, the Company/Health plan Associations, and any supplemental submission that the Health plan includes are full and true statements of all the elements included therein for the MLR reporting year stated above, and that the MLR Reporting Form has been completed in accordance with the Department of Managed Health Care’s guidance and reporting instructions, according to the best of his/her information, knowledge and belief. Furthermore, the scope of this attestation by the described officer includes any related electronic filings and postings for the MLR reporting year stated above and which are required by Department of Managed Health Care.
B23: Chief Executive Officer/President
B27: Chief Financial Officer

Sheet Premium Retrieve - SHCE Method (hidden)
J1: Legal Entity Stat Summary
J2: Expense Group
J3: Actuals
J4: All Channels
J5: Statutory Product
J6: Nationwide Life Insurance Co
J7: E10124:Dental
J8: Entity
J9: Reinsurance IDs
J10: Direct Reinsurance Type
J11: California
J12: Managed Entity
A13: 1.1 Direct premium written | B13: 12ITD | C13: December ITD | D13: Y2018 | E13: Y2018 | F13: F4010000 | G13: Premiums and Annuity Considerations | H13: All Accident Years | I13: All Accident Years | J13: 1494606.53
A14: 1.1 Direct premium written | B14: 3ITD | C14: March ITD | D14: Y2019 | E14: Y2019 | F14: F4010000 | G14: Premiums and Annuity Considerations | H14: All Accident Years | I14: All Accident Years | J14: 365463.14
A15: 1.2 Unearned premium prior year | B15: 12ITD | C15: December ITD | D15: Y2017 | E15: Y2017 | F15: 22100001 | G15: Unearned Premium Reserve-A&H | H15: All Accident Years | I15: All Accident Years | J15: 4172.76
B16: 3ITD | C16: March ITD | D16: Y2018 | E16: Y2018 | F16: 22100001 | G16: Unearned Premium Reserve-A&H | H16: All Accident Years | I16: All Accident Years | J16: 4229.62
A17: 1.3 Unearned premium MLR Reporting year | B17: 12ITD | C17: December ITD | D17: Y2018 | E17: Y2018 | F17: 22100001 | G17: Unearned Premium Reserve-A&H | H17: All Accident Years | I17: All Accident Years | J17: 2859.93
B18: 3ITD | C18: March ITD | D18: Y2019 | E18: Y2019 | F18: 22100001 | G18: Unearned Premium Reserve-A&H | H18: All Accident Years | I18: All Accident Years | J18: 4411.92
B19: 12ITD | C19: December ITD | D19: Y2018 | E19: Y2018 | F19: 41100000 | G19: Insurance Premiums | H19: All Accident Years | I19: All Accident Years | J19: 1495919.36

Sheet Claims retrieve (hidden)
F1: Legal Entity Stat Summary
F2: Expense Group
F3: Actuals
F4: All Channels
F5: Statutory Product
F6: Nationwide Life Insurance Co
F7: E10124:Dental
F8: Entity
F9: Reinsurance IDs
F10: Direct Reinsurance Type
F11: California
A12: MLR Line Description (Pt 2 Section 2 - Claims) | F12: Managed Entity
A13: 2.1a Claims paid during the MLR reporting year regardless of incurred date | B13: December ITD | C13: Y2019 | D13: A&H Paid Losses | E13: All Accident Years | F13: 766348.07
A14: 2.1b Claims incurred only during the MLR reporting year, paid through 3/31 of the following year | B14: December ITD | C14: Y2019 | D14: A&H Chg Net Loss Res-IBNR | E14: All Accident Years | F14: 29868.08
A15: 2.1b Claims incurred only during the MLR reporting year, paid through 3/31 of the following year | B15: December ITD | C15: Y2019 | D15: A&H Chg In A&O IBNR Reserve | E15: All Accident Years | F15: 0
A16: 2.4a Reserves as of 12/31 of MLR reporting year for all claims regardless of incurred date
A17: 2.4b Reserves for claims incurred only during the MLR reporting year, calculated as of 3/31 of the following year | B17: December ITD | C17: Y2019 | D17: Paid Surrender Benefit-GA | E17: All Accident Years | F17: 0
A18: 2.5 Direct claim reserves prior year | B18: December ITD | C18: Y2019 | D18: Death Benf-Life Claim(s) Pndg | E18: All Accident Years | F18: 0
A19: 2.9a Reserved in MLR reporting year regardless of incurred date | B19: December ITD | C19: Y2019 | D19: Paid Death Benefits-GA | E19: All Accident Years | F19: 0
A20: 2.9b Reserves specific to the MLR reporting year through 3/31 of the following year | B20: December ITD | C20: Y2019 | D20: Chg in Policy Reserves-GA | E20: All Accident Years | F20: 0
A21: 2.10 Reserve for experience rating refunds (rate credits) prior year | B21: December ITD | C21: Y2019 | D21: Conversion Fee | E21: All Accident Years | F21: 0
B22: December ITD | C22: Y2019 | D22: Chg in Loss Resv-IBNR-NF | E22: All Accident Years | F22: 0
B23: December ITD | C23: Y2019 | D23: Change in Reserves-SCWOLC | E23: All Accident Years | F23: 0
B24: December ITD | C24: Y2019 | D24: A&H A&O Paid | E24: All Accident Years | F24: 0
B25: December ITD | C25: Y2019 | D25: A&H Chg In Loss Resv-Claim(s) | E25: All Accident Years | F25: 0
B26: December ITD | C26: Y2019 | D26: A&H Chg In Tabular Disc-Case | E26: All Accident Years | F26: 0
B27: December ITD | C27: Y2019 | D27: A&H D&CC Paid-No Detail | E27: All Accident Years | F27: 0
B28: December ITD | C28: Y2019 | D28: Sundry Interest | E28: All Accident Years | F28: 0
B29: December ITD | C29: Y2019 | D29: Policy Benefits & Claims | E29: All Accident Years | F29: 798882.62
B31: March ITD | C31: Y2020 | D31: A&H Paid Losses | E31: Loss Year 2019 | F31: 2944.8
B32: December ITD | C32: Y2019 | D32: A&H Paid Losses | E32: Loss Year 2019 | F32: 631031.59
B33: March ITD | C33: Y2020 | D33: A&H Chg Net Loss Res-IBNR | E33: Loss Year 2019 | F33: -25848.55
B34: March ITD | C34: Y2020 | D34: A&H Chg In A&O IBNR Reserve | E34: Loss Year 2019 | F34: 0
B36: March ITD | C36: Y2020 | D36: Chg in Loss Resv-IBNR-NF | E36: Loss Year 2019 | F36: 0
B37: March ITD | C37: Y2020 | D37: A&H A&O Paid | E37: Loss Year 2019 | F37: 0
B38: March ITD | C38: Y2020 | D38: A&H Chg In Loss Resv-Claim(s) | E38: Loss Year 2019 | F38: 0
B39: March ITD | C39: Y2020 | D39: A&H D&CC Paid-No Detail | E39: Loss Year 2019 | F39: 0
B40: March ITD | C40: Y2020 | D40: Policy Benefits & Claims | E40: Loss Year 2019 | F40: -22828.39
B42: December ITD | C42: Y2018 | D42: Loss Reserve IBNR-A&H | E42: All Accident Years | F42: 120896.48
B43: December ITD | C43: Y2019 | D43: Loss Reserve IBNR-A&H | E43: All Accident Years | F43: 149207.46
B44: March ITD | C44: Y2020 | D44: Loss Reserve IBNR-A&H | E44: Loss Year 2019 | F44: 123956.07
B46: December ITD | C46: Y2018 | D46: D&CC IBNR-A&H | E46: All Accident Years | F46: 6649.31
B47: December ITD | C47: Y2019 | D47: D&CC IBNR-A&H | E47: All Accident Years | F47: 8206.41
B48: March ITD | C48: Y2020 | D48: D&CC IBNR-A&H | E48: Loss Year 2019 | F48: 6817.58
B50: December ITD | C50: Y2019 | D50: Experience Rate Credit Resv-A&H | E50: All Accident Years | F50: 0
B51: March ITD | C51: Y2020 | D51: Experience Rate Credit Resv-A&H | E51: Loss Year 2019 | F51: 0

Sheet Taxes & assessments retrieve (hidden)
F1: Expense Group
F2: Actuals
F3: All Channels
F4: Statutory Product
F5: Nationwide Life Insurance Co
F6: E10124:Dental
F7: Entity
F8: Reinsurance IDs
F9: California
F10: Managed Entity
F11: Legal Entity Stat Summary
A12: Premium Tax - Plan/FCST | B12: December ITD | C12: Y2019 | D12: All Accident Years | E12: Direct Reinsurance Type | F12: 0
A13: TL&F-Premium Tax Expense | B13: December ITD | C13: Y2019 | D13: All Accident Years | E13: Direct Reinsurance Type | F13: 31210.23
A14: TL&F-Premium Tax Expense-A&H | B14: December ITD | C14: Y2019 | D14: All Accident Years | E14: Direct Reinsurance Type | F14: 0
A15: TL&F-Amort Premium Tax Recvrbl | B15: December ITD | C15: Y2019 | D15: All Accident Years | E15: Direct Reinsurance Type | F15: 0
A16: TL&F-Chg in Premium Tax Liab | B16: December ITD | C16: Y2019 | D16: All Accident Years | E16: Direct Reinsurance Type | F16: 0
A17: Chg in Loss Based Assmt Accrl | B17: December ITD | C17: Y2019 | D17: All Accident Years | E17: Direct Reinsurance Type | F17: 0
A18: Other TLF - Plan/FCST | B18: December ITD | C18: Y2019 | D18: All Accident Years | E18: Direct Reinsurance Type | F18: 0
A19: Licenses & Fees-Co | B19: December ITD | C19: Y2019 | D19: All Accident Years | E19: Direct Reinsurance Type | F19: 0
A20: TL&F-Agent License & Fees | B20: December ITD | C20: Y2019 | D20: All Accident Years | E20: Direct Reinsurance Type | F20: 0
A21: Chg In Accrl Ins Dept TL&F Control | B21: December ITD | C21: Y2019 | D21: All Accident Years | E21: Direct Reinsurance Type | F21: 0
A22: ACA HIP Fee expense | B22: December ITD | C22: Y2019 | D22: All Accident Years | E22: Direct Reinsurance Type | F22: 0
A23: A&H Taxes Lic & Fees | B23: December ITD | C23: Y2019 | D23: All Accident Years | E23: Direct Reinsurance Type | F23: 0
A24: State Tax | B24: December ITD | C24: Y2019 | D24: All Accident Years | E24: Direct Reinsurance Type | F24: 0
A25: City/Municipality Tax | B25: December ITD | C25: Y2019 | D25: All Accident Years | E25: Direct Reinsurance Type | F25: 0
A26: TL&F-Fines & Penalties | B26: December ITD | C26: Y2019 | D26: All Accident Years | E26: Direct Reinsurance Type | F26: 0
A27: Franchise Tax | B27: December ITD | C27: Y2019 | D27: All Accident Years | E27: Direct Reinsurance Type | F27: 0
A28: TL&F-All Other | B28: December ITD | C28: Y2019 | D28: All Accident Years | E28: Direct Reinsurance Type | F28: 0
A29: Change in All Other Tax (Inactive) | B29: December ITD | C29: Y2019 | D29: All Accident Years | E29: Direct Reinsurance Type | F29: 0
A30: Chg in Non-Income Tax Reserves | B30: December ITD | C30: Y2019 | D30: All Accident Years | E30: Direct Reinsurance Type | F30: 0
A31: Federal Fines and Penalties | B31: December ITD | C31: Y2019 | D31: All Accident Years | E31: Direct Reinsurance Type | F31: 0
A32: Guaranty Fund Tax | B32: December ITD | C32: Y2019 | D32: All Accident Years | E32: Direct Reinsurance Type | F32: 0
A34: Premium Tax - Plan/FCST | B34: March ITD | C34: Y2020 | D34: All Accident Years | E34: Direct Reinsurance Type | F34: 0
A35: TL&F-Premium Tax Expense | B35: March ITD | C35: Y2020 | D35: All Accident Years | E35: Direct Reinsurance Type | F35: 9992.28
A36: TL&F-Premium Tax Expense-A&H | B36: March ITD | C36: Y2020 | D36: All Accident Years | E36: Direct Reinsurance Type | F36: 0
A37: TL&F-Amort Premium Tax Recvrbl | B37: March ITD | C37: Y2020 | D37: All Accident Years | E37: Direct Reinsurance Type | F37: 0
A38: TL&F-Chg in Premium Tax Liab | B38: March ITD | C38: Y2020 | D38: All Accident Years | E38: Direct Reinsurance Type | F38: 0
A39: Chg in Loss Based Assmt Accrl | B39: March ITD | C39: Y2020 | D39: All Accident Years | E39: Direct Reinsurance Type | F39: 0
A40: Other TLF - Plan/FCST | B40: March ITD | C40: Y2020 | D40: All Accident Years | E40: Direct Reinsurance Type | F40: 0
A41: Licenses & Fees-Co | B41: March ITD | C41: Y2020 | D41: All Accident Years | E41: Direct Reinsurance Type | F41: 0
A42: TL&F-Agent License & Fees | B42: March ITD | C42: Y2020 | D42: All Accident Years | E42: Direct Reinsurance Type | F42: 0
A43: Chg In Accrl Ins Dept TL&F Control | B43: March ITD | C43: Y2020 | D43: All Accident Years | E43: Direct Reinsurance Type | F43: 0
A44: ACA HIP Fee expense | B44: March ITD | C44: Y2020 | D44: All Accident Years | E44: Direct Reinsurance Type | F44: 0
A45: A&H Taxes Lic & Fees | B45: March ITD | C45: Y2020 | D45: All Accident Years | E45: Direct Reinsurance Type | F45: 0
A46: State Tax | B46: March ITD | C46: Y2020 | D46: All Accident Years | E46: Direct Reinsurance Type | F46: 0
A47: City/Municipality Tax | B47: March ITD | C47: Y2020 | D47: All Accident Years | E47: Direct Reinsurance Type | F47: 0
A48: TL&F-Fines & Penalties | B48: March ITD | C48: Y2020 | D48: All Accident Years | E48: Direct Reinsurance Type | F48: 0
A49: Franchise Tax | B49: March ITD | C49: Y2020 | D49: All Accident Years | E49: Direct Reinsurance Type | F49: 0
A50: TL&F-All Other | B50: March ITD | C50: Y2020 | D50: All Accident Years | E50: Direct Reinsurance Type | F50: 0
A51: Change in All Other Tax (Inactive) | B51: March ITD | C51: Y2020 | D51: All Accident Years | E51: Direct Reinsurance Type | F51: 0
A52: Chg in Non-Income Tax Reserves | B52: March ITD | C52: Y2020 | D52: All Accident Years | E52: Direct Reinsurance Type | F52: 0
A53: Federal Fines and Penalties | B53: March ITD | C53: Y2020 | D53: All Accident Years | E53: Direct Reinsurance Type | F53: 0
A54: Guaranty Fund Tax | B54: March ITD | C54: Y2020 | D54: All Accident Years | E54: Direct Reinsurance Type | F54: 0
A57: Net Operating Income | B57: December YTD | C57: Y2019 | D57: All Accident Years | E57: Direct Reinsurance Type | F57: 312298.58
A58: Net Operating Income | B58: March ITD | C58: Y2020 | D58: All Accident Years | E58: Direct Reinsurance Type | F58: 33494.84

Sheet State allocation (hidden)
B1: Y2019
B2: Management GAAP summary
B3: All Accident Years
B4: Expense Group
B5: Actuals
B6: Managed Entity
B7: All Channels
B8: Statutory Product
B9: Legal Entity
B10: E10124:Dental
B11: Entity
B12: Reinsurance ID
B13: December YTD
B14: Insurance Premiums
B15: Direct Reinsurance Type
A16: Delaware | B16: 34193.55
A17: District of Columbia | B17: 22613.63
A18: Kentucky | B18: 46994.55
A19: Maryland | B19: 133144.21
A20: Ohio | B20: 1040043.66
A21: Tennessee | B21: 127216.98
A22: Virginia | B22: 165986.28
A23: West Virginia | B23: 33915.69
A24: Connecticut | B24: 58825.68
A25: Massachusetts | B25: 31269.58
A26: Maine | B26: 0
A27: New Hampshire | B27: 16404.62
A28: New Jersey | B28: 36608.96
A29: New York | B29: 494187.85
A30: Pennsylvania | B30: 554895.27
A31: Rhode Island | B31: 11332.43
A32: Alabama | B32: 59213.8
A33: Arkansas | B33: 28124.36
A34: Florida | B34: 516828.41
A35: Georgia | B35: 594514.43
A36: Mississippi | B36: 60207.24
A37: North Carolina | B37: 264044.07
A38: South Carolina | B38: 182426.67
A39: Iowa | B39: 28590.31
A40: Illinois | B40: 305191.73
A41: Indiana | B41: 270154.85
A42: Kansas | B42: 191550.65
A43: Michigan | B43: 1262292.79
A44: Minnesota | B44: 10974.31
A45: Missouri | B45: 425997.63
A46: Nebraska | B46: 40628.84
A47: North Dakota | B47: 32167.96
A48: Wisconsin | B48: 638133.93
A49: Arizona | B49: 326697.4
A50: Colorado | B50: 151730.67
A51: Montana | B51: 116.3
A52: New Mexico | B52: 33545.97
A53: Oklahoma | B53: 108895.84
A54: Texas | B54: 658542.68
A55: Utah | B55: 114976.67
A56: Wyoming | B56: 13596.58
A57: California | B57: 1516660.46 | C57: =B57/SUM(B16:B64) -> 0.1284962541
A58: Idaho | B58: 140347.87
A59: Nevada | B59: 250676.58
A60: Oregon | B60: 191484.08
A61: Washington | B61: 464679.11
A62: Alaska | B62: 353.78
A63: Hawaii | B63: 12859.93
A64: Louisiana | B64: 99310.37

Sheet Salary, OGA, etc (hidden)
G1: Expense Group
G2: Actuals
G3: All Channels
G4: Statutory Product
G5: Legal Entity
G6: E10124:Dental
G7: Entity
G8: Reinsurance IDs
G9: Direct Reinsurance Type
G10: Geography
A11: MLR Line Description (Pt 1 Section 5 - Non-Claims Costs) | G11: Managed Entity
A12: 5.3 Direct sales salaries and benefits | B12: Salary Expense-No Detail | C12: Management GAAP summary | D12: All Accident Years | E12: December ITD | F12: Y2019 | G12: 0
A13: 5.3 Direct sales salaries and benefits | B13: Salary Benefit-401K Co Contrib | C13: Management GAAP summary | D13: All Accident Years | E13: December ITD | F13: Y2019 | G13: 34190.27
A14: 5.3 Direct sales salaries and benefits | B14: Salary Benefit-Pension Exp | C14: Management GAAP summary | D14: All Accident Years | E14: December ITD | F14: Y2019 | G14: 5006.8
A15: 5.3 Direct sales salaries and benefits | B15: Salary Benefit-OPEB Expense | C15: Management GAAP summary | D15: All Accident Years | E15: December ITD | F15: Y2019 | G15: -189.07
A16: 5.3 Direct sales salaries and benefits | B16: Salary Benefit-Grp Ins Exp-EE | C16: Management GAAP summary | D16: All Accident Years | E16: December ITD | F16: Y2019 | G16: 60018.13
A17: 5.3 Direct sales salaries and benefits | B17: Salary Benefit-Est Benefit Summ | C17: Management GAAP summary | D17: All Accident Years | E17: December ITD | F17: Y2019 | G17: -10279.11
A18: 5.3 Direct sales salaries and benefits | B18: Salary Exp-PIP/LTP | C18: Management GAAP summary | D18: All Accident Years | E18: December ITD | F18: Y2019 | G18: 126219.05
A19: 5.3 Direct sales salaries and benefits | B19: Salary Exp-Field/Sales/Fund Mgr | C19: Management GAAP summary | D19: All Accident Years | E19: December ITD | F19: Y2019 | G19: 0
A20: 5.3 Direct sales salaries and benefits | B20: Recruitment Expense-All Other | C20: Management GAAP summary | D20: All Accident Years | E20: December ITD | F20: Y2019 | G20: 596.79
A21: 5.3 Direct sales salaries and benefits | B21: Internal Charge-outs for Salary Expense | C21: Management GAAP summary | D21: All Accident Years | E21: December ITD | F21: Y2019 | G21: 0
A22: 5.3 Direct sales salaries and benefits | B22: Internal Recoveries for Salary Expense | C22: Management GAAP summary | D22: All Accident Years | E22: December ITD | F22: Y2019 | G22: 0
A23: 5.3 Direct sales salaries and benefits | B23: Internal Charge-outs for Incentives and Bonuses Expense | C23: Management GAAP summary | D23: All Accident Years | E23: December ITD | F23: Y2019 | G23: 0
A24: 5.3 Direct sales salaries and benefits | B24: Internal Charge-outs for Salary Benefit-Est Benefit Summ Expense | C24: Management GAAP summary | D24: All Accident Years | E24: December ITD | F24: Y2019 | G24: 0
A25: 5.3 Direct sales salaries and benefits | B25: Internal Recoveries for Salary Benefit-Est Benefit Summ Expense | C25: Management GAAP summary | D25: All Accident Years | E25: December ITD | F25: Y2019 | G25: 0
A26: 5.3 Direct sales salaries and benefits | B26: Internal Recoveries for Salary Benefit-Training/Ed Expense | C26: Management GAAP summary | D26: All Accident Years | E26: December ITD | F26: Y2019 | G26: 0
A27: 5.3 Direct sales salaries and benefits | B27: Internal Charge-outs for Recruitment Expense | C27: Management GAAP summary | D27: All Accident Years | E27: December ITD | F27: Y2019 | G27: 0
A28: 5.3 Direct sales salaries and benefits | B28: Internal Recoveries for Recruitment Expense | C28: Management GAAP summary | D28: All Accident Years | E28: December ITD | F28: Y2019 | G28: 0
A31: N/A | B31: Comm Expense-Renewal | C31: Management GAAP summary | D31: All Accident Years | E31: December ITD | F31: Y2019 | G31: 1815522.26
A32: N/A | B32: Comm Exp-Chg in Accrl-Renewal | C32: Management GAAP summary | D32: All Accident Years | E32: December ITD | F32: Y2019 | G32: -63490.4
A33: N/A | B33: Payroll Tax Expense-FUTA | C33: Management GAAP summary | D33: All Accident Years | E33: December ITD | F33: Y2019 | G33: 2008.8
A35: 5.6 Other general and administrative expenses | B35: Reloc Expense-Temporary Living | C35: Management GAAP summary | D35: All Accident Years | E35: December ITD | F35: Y2019 | G35: 1.23
A36: 5.6 Other general and administrative expenses | B36: Reloc Exp-Home Buy/Sell Cost | C36: Management GAAP summary | D36: All Accident Years | E36: December ITD | F36: Y2019 | G36: -125.64
A37: 5.6 Other general and administrative expenses | B37: Reloc Exp-Moving/Transportation | C37: Management GAAP summary | D37: All Accident Years | E37: December ITD | F37: Y2019 | G37: 76.1
A38: 5.6 Other general and administrative expenses | B38: Reloc Exp-Cost of Livg Subsidy | C38: Management GAAP summary | D38: All Accident Years | E38: December ITD | F38: Y2019 | G38: 0
A39: 5.6 Other general and administrative expenses | B39: Dues & Subscrptn-Prof Dues & Memb | C39: Management GAAP summary | D39: All Accident Years | E39: December ITD | F39: Y2019 | G39: 3099.69
A40: 5.6 Other general and administrative expenses | B40: Dues & Subscrptn-Subscriptions | C40: Management GAAP summary | D40: All Accident Years | E40: December ITD | F40: Y2019 | G40: 1078.19
A41: 5.6 Other general and administrative expenses | B41: Labor Related Overhead Expense | C41: Management GAAP summary | D41: All Accident Years | E41: December ITD | F41: Y2019 | G41: 32128.63
A42: 5.6 Other general and administrative expenses | B42: Labor Related Ovrhd Contra Exp | C42: Management GAAP summary | D42: All Accident Years | E42: December ITD | F42: Y2019 | G42: -30468.98
A43: 5.6 Other general and administrative expenses | B43: Travel Exp-Meals & Entertain | C43: Management GAAP summary | D43: All Accident Years | E43: December ITD | F43: Y2019 | G43: 1065.58
A44: 5.6 Other general and administrative expenses | B44: Travel Expense-No Detail | C44: Management GAAP summary | D44: All Accident Years | E44: December ITD | F44: Y2019 | G44: 0
A45: 5.6 Other general and administrative expenses | B45: Auto/Plane Expense-Lease | C45: Management GAAP summary | D45: All Accident Years | E45: December ITD | F45: Y2019 | G45: -2196.47
A46: 5.6 Other general and administrative expenses | B46: Telecommunications-Cost | C46: Management GAAP summary | D46: All Accident Years | E46: December ITD | F46: Y2019 | G46: 4310.95
A47: 5.6 Other general and administrative expenses | B47: Rent Expense-Cleaning-Shred | C47: Management GAAP summary | D47: All Accident Years | E47: December ITD | F47: Y2019 | G47: 256.06
A48: 5.6 Other general and administrative expenses | B48: Intrnl Chrgs from R/E | C48: Management GAAP summary | D48: All Accident Years | E48: December ITD | F48: Y2019 | G48: 28811.3
A49: 5.6 Other general and administrative expenses | B49: Rent Expense-No Detail | C49: Management GAAP summary | D49: All Accident Years | E49: December ITD | F49: Y2019 | G49: -0.08
A50: 5.6 Other general and administrative expenses | B50: Legal/Audit/Consltg-Legal Fee | C50: Management GAAP summary | D50: All Accident Years | E50: December ITD | F50: Y2019 | G50: 2038.47
A51: 5.6 Other general and administrative expenses | B51: Legal/Audit/Consltg-Consltg Exp Non-Txbl | C51: Management GAAP summary | D51: All Accident Years | E51: December ITD | F51: Y2019 | G51: 37591.48
A52: 5.6 Other general and administrative expenses | B52: Legal/Audit/Consltg-Consltg Exp Txbl | C52: Management GAAP summary | D52: All Accident Years | E52: December ITD | F52: Y2019 | G52: 4867.44
A53: 5.6 Other general and administrative expenses | B53: External Service-No Detail | C53: Management GAAP summary | D53: All Accident Years | E53: December ITD | F53: Y2019 | G53: 85124.13
A54: 5.6 Other general and administrative expenses | B54: External Service-TPA | C54: Management GAAP summary | D54: All Accident Years | E54: December ITD | F54: Y2019 | G54: 11847.8
A55: 5.6 Other general and administrative expenses | B55: External Service-Cost Recvry | C55: Management GAAP summary | D55: All Accident Years | E55: December ITD | F55: Y2019 | G55: 11779.93
A56: 5.6 Other general and administrative expenses | B56: Printing & Supplies-Print Exp | C56: Management GAAP summary | D56: All Accident Years | E56: December ITD | F56: Y2019 | G56: -5588.06
A57: 5.6 Other general and administrative expenses | B57: Printing & Supplies-Suppl Exp | C57: Management GAAP summary | D57: All Accident Years | E57: December ITD | F57: Y2019 | G57: 8614.63
A58: 5.6 Other general and administrative expenses | B58: Postage Expense | C58: Management GAAP summary | D58: All Accident Years | E58: December ITD | F58: Y2019 | G58: 1236.57
A59: 5.6 Other general and administrative expenses | B59: Bank Charge/Custodial Fee Exp | C59: Management GAAP summary | D59: All Accident Years | E59: December ITD | F59: Y2019 | G59: 18445.17
A60: 5.6 Other general and administrative expenses | B60: Furn & Office Equip-Deprec Exp | C60: Management GAAP summary | D60: All Accident Years | E60: December ITD | F60: Y2019 | G60: 120.8
A61: 5.6 Other general and administrative expenses | B61: Furn & Office Equip-Cost/Maint | C61: Management GAAP summary | D61: All Accident Years | E61: December ITD | F61: Y2019 | G61: 687.49
A62: 5.6 Other general and administrative expenses | B62: Furn & Office Equip-Lease Exp | C62: Management GAAP summary | D62: All Accident Years | E62: December ITD | F62: Y2019 | G62: 105.49
A63: 5.6 Other general and administrative expenses | B63: EDP Hardware Exp-Cost/Maint | C63: Management GAAP summary | D63: All Accident Years | E63: December ITD | F63: Y2019 | G63: 18.48
A64: 5.6 Other general and administrative expenses | B64: EDP Hardware Exp-Depreciation | C64: Management GAAP summary | D64: All Accident Years | E64: December ITD | F64: Y2019 | G64: 429.69
A65: 5.6 Other general and administrative expenses | B65: EDP Hardware Expense-PC Deprec | C65: Management GAAP summary | D65: All Accident Years | E65: December ITD | F65: Y2019 | G65: 2866.82
A66: 5.6 Other general and administrative expenses | B66: EDP/Software Exp-Cost/Maint | C66: Management GAAP summary | D66: All Accident Years | E66: December ITD | F66: Y2019 | G66: 50689.09
A67: 5.6 Other general and administrative expenses | B67: Advertising Exp-General | C67: Management GAAP summary | D67: All Accident Years | E67: December ITD | F67: Y2019 | G67: 155257.09
A68: 5.6 Other general and administrative expenses | B68: Advertising Exp-Sponsor & Endors | C68: Management GAAP summary | D68: All Accident Years | E68: December ITD | F68: Y2019 | G68: 6559.29
A69: 5.6 Other general and administrative expenses | B69: Advertising Expense-Creative | C69: Management GAAP summary | D69: All Accident Years | E69: December ITD | F69: Y2019 | G69: 220.34
A70: 5.6 Other general and administrative expenses | B70: Advertising Exp-Outdoor Advert | C70: Management GAAP summary | D70: All Accident Years | E70: December ITD | F70: Y2019 | G70: 0
A71: 5.6 Other general and administrative expenses | B71: BB&A Expense-No Detail | C71: Management GAAP summary | D71: All Accident Years | E71: December ITD | F71: Y2019 | G71: 1430.98
A72: 5.6 Other general and administrative expenses | B72: Contribution Exp-Charitable | C72: Management GAAP summary | D72: All Accident Years | E72: December ITD | F72: Y2019 | G72: 1746.25
A73: 5.6 Other general and administrative expenses | B73: Agent Expense/Allow-Misc | C73: Management GAAP summary | D73: All Accident Years | E73: December ITD | F73: Y2019 | G73: 560.52
A74: 5.6 Other general and administrative expenses | B74: Standard Cost IT Associate | C74: Management GAAP summary | D74: All Accident Years | E74: December ITD | F74: Y2019 | G74: 63715.52
A75: 5.6 Other general and administrative expenses | B75: Standard Cost Credit IT Associate | C75: Management GAAP summary | D75: All Accident Years | E75: December ITD | F75: Y2019 | G75: -40211
A76: 5.6 Other general and administrative expenses | B76: Misc Intrnl Prod Billing Chrg | C76: Management GAAP summary | D76: All Accident Years | E76: December ITD | F76: Y2019 | G76: -22.89
A77: 5.6 Other general and administrative expenses | B77: Corporate Expense DSA | C77: Management GAAP summary | D77: All Accident Years | E77: December ITD | F77: Y2019 | G77: 3315.74
A78: 5.6 Other general and administrative expenses | B78: All Other Departmental Exp | C78: Management GAAP summary | D78: All Accident Years | E78: December ITD | F78: Y2019 | G78: 11622.48
A79: 5.6 Other general and administrative expenses | B79: Internal Charges From NWIT | C79: Management GAAP summary | D79: All Accident Years | E79: December ITD | F79: Y2019 | G79: 41209.93
A80: 5.6 Other general and administrative expenses | B80: Internal Charge-outs for Salary Benefit-Training/Ed Expense | C80: Management GAAP summary | D80: All Accident Years | E80: December ITD | F80: Y2019 | G80: 0
A81: 5.6 Other general and administrative expenses | B81: Internal Charge-outs for Survey and Underwriting Expense | C81: Management GAAP summary | D81: All Accident Years | E81: December ITD | F81: Y2019 | G81: 0
A82: 5.6 Other general and administrative expenses | B82: Internal Charge-outs for Legal Audit & Consulting Expense | C82: Management GAAP summary | D82: All Accident Years | E82: December ITD | F82: Y2019 | G82: 0
A83: 5.6 Other general and administrative expenses | B83: Internal Recoveries for Legal Audit & Consulting Expense | C83: Management GAAP summary | D83: All Accident Years | E83: December ITD | F83: Y2019 | G83: 0
A84: 5.6 Other general and administrative expenses | B84: Internal Charge-outs for Travel Expense | C84: Management GAAP summary | D84: All Accident Years | E84: December ITD | F84: Y2019 | G84: 0
A85: 5.6 Other general and administrative expenses | B85: Internal Recoveries for Travel Expense | C85: Management GAAP summary | D85: All Accident Years | E85: December ITD | F85: Y2019 | G85: 0
A86: 5.6 Other general and administrative expenses | B86: Internal Charge-outs for Postage Expense | C86: Management GAAP summary | D86: All Accident Years | E86: December ITD | F86: Y2019 | G86: 0
A87: 5.6 Other general and administrative expenses | B87: Internal Recoveries for Postage Expense | C87: Management GAAP summary | D87: All Accident Years | E87: December ITD | F87: Y2019 | G87: 0
A88: 5.6 Other general and administrative expenses | B88: Internal Charge-outs for Telecommunications Expense | C88: Management GAAP summary | D88: All Accident Years | E88: December ITD | F88: Y2019 | G88: 0
A89: 5.6 Other general and administrative expenses | B89: Internal Recoveries for Telecommunications Expense | C89: Management GAAP summary | D89: All Accident Years | E89: December ITD | F89: Y2019 | G89: 0
A90: 5.6 Other general and administrative expenses | B90: Internal Charge-outs for Printing & Supplies Expense | C90: Management GAAP summary | D90: All Accident Years | E90: December ITD | F90: Y2019 | G90: 0
A91: 5.6 Other general and administrative expenses | B91: Internal Recoveries for Printing & Supplies Expense | C91: Management GAAP summary | D91: All Accident Years | E91: December ITD | F91: Y2019 | G91: 0
A92: 5.6 Other general and administrative expenses | B92: Internal Charge-outs for Equipment Expense | C92: Management GAAP summary | D92: All Accident Years | E92: December ITD | F92: Y2019 | G92: 0
A93: 5.6 Other general and administrative expenses | B93: Internal Recoveries for Equipment Expense | C93: Management GAAP summary | D93: All Accident Years | E93: December ITD | F93: Y2019 | G93: 0
A94: 5.6 Other general and administrative expenses | B94: Internal Charge-outs for Equipment-Depreciation Expense | C94: Management GAAP summary | D94: All Accident Years | E94: December ITD | F94: Y2019 | G94: 0
A95: 5.6 Other general and administrative expenses | B95: Internal Charge-outs for EDP and Software Expense | C95: Management GAAP summary | D95: All Accident Years | E95: December ITD | F95: Y2019 | G95: 0
A96: 5.6 Other general and administrative expenses | B96: Internal Recoveries for EDP and Software Expense | C96: Management GAAP summary | D96: All Accident Years | E96: December ITD | F96: Y2019 | G96: 0
A97: 5.6 Other general and administrative expenses | B97: Internal Charge-outs for Dues & Subscription Expense | C97: Management GAAP summary | D97: All Accident Years | E97: December ITD | F97: Y2019 | G97: 0
A98: 5.6 Other general and administrative expenses | B98: Internal Recoveries for Dues & Subscription Expense | C98: Management GAAP summary | D98: All Accident Years | E98: December ITD | F98: Y2019 | G98: 0
A99: 5.6 Other general and administrative expenses | B99: Internal Charge-outs for Misc All Other Expense | C99: Management GAAP summary | D99: All Accident Years | E99: December ITD | F99: Y2019 | G99: 0
A100: 5.6 Other general and administrative expenses | B100: Internal Recoveries for Misc All Other Expense | C100: Management GAAP summary | D100: All Accident Years | E100: December ITD | F100: Y2019 | G100: 0
A101: 5.6 Other general and administrative expenses | B101: Internal Charge-outs for External Services Expense | C101: Management GAAP summary | D101: All Accident Years | E101: December ITD | F101: Y2019 | G101: 0
A102: 5.6 Other general and administrative expenses | B102: Internal Recoveries for External Services Expense | C102: Management GAAP summary | D102: All Accident Years | E102: December ITD | F102: Y2019 | G102: 0
A103: 5.6 Other general and administrative expenses | B103: Internal Charge-outs for Relocation Expense | C103: Management GAAP summary | D103: All Accident Years | E103: December ITD | F103: Y2019 | G103: 0
A104: 5.6 Other general and administrative expenses | B104: Internal Recoveries for Relocation Expense | C104: Management GAAP summary | D104: All Accident Years | E104: December ITD | F104: Y2019 | G104: 0
A105: 5.6 Other general and administrative expenses | B105: Internal Charge-outs for Labor Related Ovrhd | C105: Management GAAP summary | D105: All Accident Years | E105: December ITD | F105: Y2019 | G105: 0
A106: 5.6 Other general and administrative expenses | B106: Internal Recoveries for Labor Related Ovrhd | C106: Management GAAP summary | D106: All Accident Years | E106: December ITD | F106: Y2019 | G106: 0
A107: 5.6 Other general and administrative expenses | B107: Internal Charge-outs for Advertising Expense | C107: Management GAAP summary | D107: All Accident Years | E107: December ITD | F107: Y2019 | G107: 0
A108: 5.6 Other general and administrative expenses | B108: Internal Recoveries for Advertising Expense | C108: Management GAAP summary | D108: All Accident Years | E108: December ITD | F108: Y2019 | G108: 0
A109: 5.6 Other general and administrative expenses | B109: Internal Charge-outs for Boards: Bureaus & Assn | C109: Management GAAP summary | D109: All Accident Years | E109: December ITD | F109: Y2019 | G109: 0
A110: 5.6 Other general and administrative expenses | B110: Internal Charge-outs for Agency Expense | C110: Management GAAP summary | D110: All Accident Years | E110: December ITD | F110: Y2019 | G110: 0
A111: 5.6 Other general and administrative expenses | B111: Internal Charge-outs for Real Estate Expense | C111: Management GAAP summary | D111: All Accident Years | E111: December ITD | F111: Y2019 | G111: 0
A112: 5.6 Other general and administrative expenses | B112: Internal Recoveries for Real Estate Expense | C112: Management GAAP summary | D112: All Accident Years | E112: December ITD | F112: Y2019 | G112: 0
A113: 5.6 Other general and administrative expenses | B113: Internal Charge-outs for Director Fees | C113: Management GAAP summary | D113: All Accident Years | E113: December ITD | F113: Y2019 | G113: 0
A114: 5.6 Other general and administrative expenses | B114: Internal Charge-outs for Corporate Insurance | C114: Management GAAP summary | D114: All Accident Years | E114: December ITD | F114: Y2019 | G114: 0
A115: 5.6 Other general and administrative expenses | B115: Internal Charge-outs for Contribution Expense | C115: Management GAAP summary | D115: All Accident Years | E115: December ITD | F115: Y2019 | G115: 0
A116: 5.6 Other general and administrative expenses | B116: Internal Service Recoveries | C116: Management GAAP summary | D116: All Accident Years | E116: December ITD | F116: Y2019 | G116: -1071.49
A117: 5.6 Other general and administrative expenses | B117: Internal Service Fee-Income | C117: Management GAAP summary | D117: All Accident Years | E117: December ITD | F117: Y2019 | G117: -177.5
A118: 5.6 Other general and administrative expenses | B118: Salary Benefit-No Detail | C118: Management GAAP summary | D118: All Accident Years | E118: December ITD | F118: Y2019 | G118: -73.56
A120: 5.3 Direct sales salaries and benefits | B120: Salary Expense-No Detail | C120: Management GAAP summary | D120: All Accident Years | E120: March ITD | F120: Y2020 | G120: 0.01
A121: 5.3 Direct sales salaries and benefits | B121: Salary Benefit-401K Co Contrib | C121: Management GAAP summary | D121: All Accident Years | E121: March ITD | F121: Y2020 | G121: 10924.02
A122: 5.3 Direct sales salaries and benefits | B122: Salary Benefit-Pension Exp | C122: Management GAAP summary | D122: All Accident Years | E122: March ITD | F122: Y2020 | G122: -2669.25
A123: 5.3 Direct sales salaries and benefits | B123: Salary Benefit-OPEB Expense | C123: Management GAAP summary | D123: All Accident Years | E123: March ITD | F123: Y2020 | G123: 1198.26
A124: 5.3 Direct sales salaries and benefits | B124: Salary Benefit-Grp Ins Exp-EE | C124: Management GAAP summary | D124: All Accident Years | E124: March ITD | F124: Y2020 | G124: 21141.74
A125: 5.3 Direct sales salaries and benefits | B125: Salary Benefit-Est Benefit Summ | C125: Management GAAP summary | D125: All Accident Years | E125: March ITD | F125: Y2020 | G125: 2368.93
A126: 5.3 Direct sales salaries and benefits | B126: Salary Exp-PIP/LTP | C126: Management GAAP summary | D126: All Accident Years | E126: March ITD | F126: Y2020 | G126: 174193.42
A127: 5.3 Direct sales salaries and benefits | B127: Salary Exp-Field/Sales/Fund Mgr | C127: Management GAAP summary | D127: All Accident Years | E127: March ITD | F127: Y2020 | G127: 4350
A128: 5.3 Direct sales salaries and benefits | B128: Recruitment Expense-All Other | C128: Management GAAP summary | D128: All Accident Years | E128: March ITD | F128: Y2020 | G128: 68.13
A129: 5.3 Direct sales salaries and benefits | B129: Internal Charge-outs for Salary Expense | C129: Management GAAP summary | D129: All Accident Years | E129: March ITD | F129: Y2020 | G129: 0
A130: 5.3 Direct sales salaries and benefits | B130: Internal Recoveries for Salary Expense | C130: Management GAAP summary | D130: All Accident Years | E130: March ITD | F130: Y2020 | G130: 0
A131: 5.3 Direct sales salaries and benefits | B131: Internal Charge-outs for Incentives and Bonuses Expense | C131: Management GAAP summary | D131: All Accident Years | E131: March ITD | F131: Y2020 | G131: 0
A132: 5.3 Direct sales salaries and benefits | B132: Internal Charge-outs for Salary Benefit-Est Benefit Summ Expense | C132: Management GAAP summary | D132: All Accident Years | E132: March ITD | F132: Y2020 | G132: 0
A133: 5.3 Direct sales salaries and benefits | B133: Internal Recoveries for Salary Benefit-Est Benefit Summ Expense | C133: Management GAAP summary | D133: All Accident Years | E133: March ITD | F133: Y2020 | G133: 0
A134: 5.3 Direct sales salaries and benefits | B134: Internal Recoveries for Salary Benefit-Training/Ed Expense | C134: Management GAAP summary | D134: All Accident Years | E134: March ITD | F134: Y2020 | G134: 0
A135: 5.3 Direct sales salaries and benefits | B135: Internal Charge-outs for Recruitment Expense | C135: Management GAAP summary | D135: All Accident Years | E135: March ITD | F135: Y2020 | G135: 0
A136: 5.3 Direct sales salaries and benefits | B136: Internal Recoveries for Recruitment Expense | C136: Management GAAP summary | D136: All Accident Years | E136: March ITD | F136: Y2020 | G136: 0
A138: N/A | B138: Payroll Tax Exp-Chg in Accrual | C138: Management GAAP summary | D138: All Accident Years | E138: March ITD | F138: Y2020 | G138: -720.14
A139: N/A | B139: Payroll Tax Expense-FICA | C139: Management GAAP summary | D139: All Accident Years | E139: March ITD | F139: Y2020 | G139: 24860.13
A140: N/A | B140: Payroll Tax Expense-FUTA | C140: Management GAAP summary | D140: All Accident Years | E140: March ITD | F140: Y2020 | G140: 1864.65
A142: 5.6 Other general and administrative expenses | B142: Reloc Expense-Temporary Living | C142: Management GAAP summary | D142: All Accident Years | E142: March ITD | F142: Y2020 | G142: 0
A143: 5.6 Other general and administrative expenses | B143: Reloc Exp-Home Buy/Sell Cost | C143: Management GAAP summary | D143: All Accident Years | E143: March ITD | F143: Y2020 | G143: -55.02
A144: 5.6 Other general and administrative expenses | B144: Reloc Exp-Moving/Transportation | C144: Management GAAP summary | D144: All Accident Years | E144: March ITD | F144: Y2020 | G144: 11.19
A145: 5.6 Other general and administrative expenses | B145: Reloc Exp-Cost of Livg Subsidy | C145: Management GAAP summary | D145: All Accident Years | E145: March ITD | F145: Y2020 | G145: 0
A146: 5.6 Other general and administrative expenses | B146: Dues & Subscrptn-Prof Dues & Memb | C146: Management GAAP summary | D146: All Accident Years | E146: March ITD | F146: Y2020 | G146: 526.5
A147: 5.6 Other general and administrative expenses | B147: Dues & Subscrptn-Subscriptions | C147: Management GAAP summary | D147: All Accident Years | E147: March ITD | F147: Y2020 | G147: 80.65
A148: 5.6 Other general and administrative expenses | B148: Labor Related Overhead Expense | C148: Management GAAP summary | D148: All Accident Years | E148: March ITD | F148: Y2020 | G148: 5923.86
A149: 5.6 Other general and administrative expenses | B149: Labor Related Ovrhd Contra Exp | C149: Management GAAP summary | D149: All Accident Years | E149: March ITD | F149: Y2020 | G149: -3296.54
A150: 5.6 Other general and administrative expenses | B150: Travel Exp-Meals & Entertain | C150: Management GAAP summary | D150: All Accident Years | E150: March ITD | F150: Y2020 | G150: -2.1
A151: 5.6 Other general and administrative expenses | B151: Travel Expense-No Detail | C151: Management GAAP summary | D151: All Accident Years | E151: March ITD | F151: Y2020 | G151: 0
A152: 5.6 Other general and administrative expenses | B152: Auto/Plane Expense-Lease | C152: Management GAAP summary | D152: All Accident Years | E152: March ITD | F152: Y2020 | G152: -852.92
A153: 5.6 Other general and administrative expenses | B153: Telecommunications-Cost | C153: Management GAAP summary | D153: All Accident Years | E153: March ITD | F153: Y2020 | G153: 1454.05
A154: 5.6 Other general and administrative expenses | B154: Rent Expense-Cleaning-Shred | C154: Management GAAP summary | D154: All Accident Years | E154: March ITD | F154: Y2020 | G154: 3.96
A155: 5.6 Other general and administrative expenses | B155: Intrnl Chrgs from R/E | C155: Management GAAP summary | D155: All Accident Years | E155: March ITD | F155: Y2020 | G155: 6878.73
A156: 5.6 Other general and administrative expenses | B156: Rent Expense-No Detail | C156: Management GAAP summary | D156: All Accident Years | E156: March ITD | F156: Y2020 | G156: 0
A157: 5.6 Other general and administrative expenses | B157: Legal/Audit/Consltg-Legal Fee | C157: Management GAAP summary | D157: All Accident Years | E157: March ITD | F157: Y2020 | G157: 235.22
A158: 5.6 Other general and administrative expenses | B158: Legal/Audit/Consltg-Consltg Exp Non-Txbl | C158: Management GAAP summary | D158: All Accident Years | E158: March ITD | F158: Y2020 | G158: 17777.32
A159: 5.6 Other general and administrative expenses | B159: Legal/Audit/Consltg-Consltg Exp Txbl | C159: Management GAAP summary | D159: All Accident Years | E159: March ITD | F159: Y2020 | G159: 1366.78
A160: 5.6 Other general and administrative expenses | B160: External Service-No Detail | C160: Management GAAP summary | D160: All Accident Years | E160: March ITD | F160: Y2020 | G160: 662.19
A161: 5.6 Other general and administrative expenses | B161: External Service-TPA | C161: Management GAAP summary | D161: All Accident Years | E161: March ITD | F161: Y2020 | G161: 1150.37
A162: 5.6 Other general and administrative expenses | B162: External Service-Cost Recvry | C162: Management GAAP summary | D162: All Accident Years | E162: March ITD | F162: Y2020 | G162: -582.79
A163: 5.6 Other general and administrative expenses | B163: Printing & Supplies-Print Exp | C163: Management GAAP summary | D163: All Accident Years | E163: March ITD | F163: Y2020 | G163: -1617.22
A164: 5.6 Other general and administrative expenses | B164: Printing & Supplies-Suppl Exp | C164: Management GAAP summary | D164: All Accident Years | E164: March ITD | F164: Y2020 | G164: 532.82
A165: 5.6 Other general and administrative expenses | B165: Postage Expense | C165: Management GAAP summary | D165: All Accident Years | E165: March ITD | F165: Y2020 | G165: 238.36
A166: 5.6 Other general and administrative expenses | B166: Bank Charge/Custodial Fee Exp | C166: Management GAAP summary | D166: All Accident Years | E166: March ITD | F166: Y2020 | G166: 2257.47
A167: 5.6 Other general and administrative expenses | B167: Furn & Office Equip-Deprec Exp | C167: Management GAAP summary | D167: All Accident Years | E167: March ITD | F167: Y2020 | G167: 35.53
A168: 5.6 Other general and administrative expenses | B168: Furn & Office Equip-Cost/Maint | C168: Management GAAP summary | D168: All Accident Years | E168: March ITD | F168: Y2020 | G168: 325.9
A169: 5.6 Other general and administrative expenses | B169: Furn & Office Equip-Lease Exp | C169: Management GAAP summary | D169: All Accident Years | E169: March ITD | F169: Y2020 | G169: 0
A170: 5.6 Other general and administrative expenses | B170: EDP Hardware Exp-Cost/Maint | C170: Management GAAP summary | D170: All Accident Years | E170: March ITD | F170: Y2020 | G170: 50.82
A171: 5.6 Other general and administrative expenses | B171: EDP Hardware Exp-Depreciation | C171: Management GAAP summary | D171: All Accident Years | E171: March ITD | F171: Y2020 | G171: 1920.78
A172: 5.6 Other general and administrative expenses | B172: EDP Hardware Expense-PC Deprec | C172: Management GAAP summary | D172: All Accident Years | E172: March ITD | F172: Y2020 | G172: 476.15
A173: 5.6 Other general and administrative expenses | B173: EDP/Software Exp-Cost/Maint | C173: Management GAAP summary | D173: All Accident Years | E173: March ITD | F173: Y2020 | G173: 12421.51
A174: 5.6 Other general and administrative expenses | B174: Advertising Exp-General | C174: Management GAAP summary | D174: All Accident Years | E174: March ITD | F174: Y2020 | G174: 29162.07
A175: 5.6 Other general and administrative expenses | B175: Advertising Exp-Sponsor & Endors | C175: Management GAAP summary | D175: All Accident Years | E175: March ITD | F175: Y2020 | G175: 602.18
A176: 5.6 Other general and administrative expenses | B176: Advertising Expense-Creative | C176: Management GAAP summary | D176: All Accident Years | E176: March ITD | F176: Y2020 | G176: 3.54
A177: 5.6 Other general and administrative expenses | B177: Advertising Exp-Outdoor Advert | C177: Management GAAP summary | D177: All Accident Years | E177: March ITD | F177: Y2020 | G177: 0
A178: 5.6 Other general and administrative expenses | B178: BB&A Expense-No Detail | C178: Management GAAP summary | D178: All Accident Years | E178: March ITD | F178: Y2020 | G178: 108.83
A179: 5.6 Other general and administrative expenses | B179: Contribution Exp-Charitable | C179: Management GAAP summary | D179: All Accident Years | E179: March ITD | F179: Y2020 | G179: 4.06
A180: 5.6 Other general and administrative expenses | B180: Agent Expense/Allow-Misc | C180: Management GAAP summary | D180: All Accident Years | E180: March ITD | F180: Y2020 | G180: 0
A181: 5.6 Other general and administrative expenses | B181: Standard Cost IT Associate | C181: Management GAAP summary | D181: All Accident Years | E181: March ITD | F181: Y2020 | G181: 23756.82
A182: 5.6 Other general and administrative expenses | B182: Standard Cost Credit IT Associate | C182: Management GAAP summary | D182: All Accident Years | E182: March ITD | F182: Y2020 | G182: -11035.55
A183: 5.6 Other general and administrative expenses | B183: Misc Intrnl Prod Billing Chrg | C183: Management GAAP summary | D183: All Accident Years | E183: March ITD | F183: Y2020 | G183: -5.19
A184: 5.6 Other general and administrative expenses | B184: Corporate Expense DSA | C184: Management GAAP summary | D184: All Accident Years | E184: March ITD | F184: Y2020 | G184: 996
A185: 5.6 Other general and administrative expenses | B185: All Other Departmental Exp | C185: Management GAAP summary | D185: All Accident Years | E185: March ITD | F185: Y2020 | G185: 5463.13
A186: 5.6 Other general and administrative expenses | B186: Internal Charges From NWIT | C186: Management GAAP summary | D186: All Accident Years | E186: March ITD | F186: Y2020 | G186: 495.01
A187: 5.6 Other general and administrative expenses | B187: Internal Charge-outs for Salary Benefit-Training/Ed Expense | C187: Management GAAP summary | D187: All Accident Years | E187: March ITD | F187: Y2020 | G187: 0
A188: 5.6 Other general and administrative expenses | B188: Internal Charge-outs for Survey and Underwriting Expense | C188: Management GAAP summary | D188: All Accident Years | E188: March ITD | F188: Y2020 | G188: 0
A189: 5.6 Other general and administrative expenses | B189: Internal Charge-outs for Legal Audit & Consulting Expense | C189: Management GAAP summary | D189: All Accident Years | E189: March ITD | F189: Y2020 | G189: 0
A190: 5.6 Other general and administrative expenses | B190: Internal Recoveries for Legal Audit & Consulting Expense | C190: Management GAAP summary | D190: All Accident Years | E190: March ITD | F190: Y2020 | G190: 0
A191: 5.6 Other general and administrative expenses | B191: Internal Charge-outs for Travel Expense | C191: Management GAAP summary | D191: All Accident Years | E191: March ITD | F191: Y2020 | G191: 0
A192: 5.6 Other general and administrative expenses | B192: Internal Recoveries for Travel Expense | C192: Management GAAP summary | D192: All Accident Years | E192: March ITD | F192: Y2020 | G192: 0
A193: 5.6 Other general and administrative expenses | B193: Internal Charge-outs for Postage Expense | C193: Management GAAP summary | D193: All Accident Years | E193: March ITD | F193: Y2020 | G193: 0
A194: 5.6 Other general and administrative expenses | B194: Internal Recoveries for Postage Expense | C194: Management GAAP summary | D194: All Accident Years | E194: March ITD | F194: Y2020 | G194: 0
A195: 5.6 Other general and administrative expenses | B195: Internal Charge-outs for Telecommunications Expense | C195: Management GAAP summary | D195: All Accident Years | E195: March ITD | F195: Y2020 | G195: 0
A196: 5.6 Other general and administrative expenses | B196: Internal Recoveries for Telecommunications Expense | C196: Management GAAP summary | D196: All Accident Years | E196: March ITD | F196: Y2020 | G196: 0
A197: 5.6 Other general and administrative expenses | B197: Internal Charge-outs for Printing & Supplies Expense | C197: Management GAAP summary | D197: All Accident Years | E197: March ITD | F197: Y2020 | G197: 0
A198: 5.6 Other general and administrative expenses | B198: Internal Recoveries for Printing & Supplies Expense | C198: Management GAAP summary | D198: All Accident Years | E198: March ITD | F198: Y2020 | G198: 0
A199: 5.6 Other general and administrative expenses | B199: Internal Charge-outs for Equipment Expense | C199: Management GAAP summary | D199: All Accident Years | E199: March ITD | F199: Y2020 | G199: 0
A200: 5.6 Other general and administrative expenses | B200: Internal Recoveries for Equipment Expense | C200: Management GAAP summary | D200: All Accident Years | E200: March ITD | F200: Y2020 | G200: 0
A201: 5.6 Other general and administrative expenses | B201: Internal Charge-outs for Equipment-Depreciation Expense | C201: Management GAAP summary | D201: All Accident Years | E201: March ITD | F201: Y2020 | G201: 0
A202: 5.6 Other general and administrative expenses | B202: Internal Charge-outs for EDP and Software Expense | C202: Management GAAP summary | D202: All Accident Years | E202: March ITD | F202: Y2020 | G202: 0
A203: 5.6 Other general and administrative expenses | B203: Internal Recoveries for EDP and Software Expense | C203: Management GAAP summary | D203: All Accident Years | E203: March ITD | F203: Y2020 | G203: 0
A204: 5.6 Other general and administrative expenses | B204: Internal Charge-outs for Dues & Subscription Expense | C204: Management GAAP summary | D204: All Accident Years | E204: March ITD | F204: Y2020 | G204: 0
A205: 5.6 Other general and administrative expenses | B205: Internal Recoveries for Dues & Subscription Expense | C205: Management GAAP summary | D205: All Accident Years | E205: March ITD | F205: Y2020 | G205: 0
A206: 5.6 Other general and administrative expenses | B206: Internal Charge-outs for Misc All Other Expense | C206: Management GAAP summary | D206: All Accident Years | E206: March ITD | F206: Y2020 | G206: 0
... 19 more rows
